bitfinex/quotes_ETHUSD_20250319
["timestamp","ask_amount","ask_price","bid_price","bid_amount"]
[1742387585365,4.62444103,2015.2,2015.1,4.96253]
[1742387586780,5.44954103,2015.5,2015.3,4.96204]
[1742387587193,5.44954103,2015.5,2015.3,9.92396]
[1742387587367,4.62444103,2015.5,2015.2,9.92442]
[1742387587564,4.62444103,2015.5,2015.3,4.96198]
[1742387588283,4.62444103,2015.5,2015.4,4.96179]
[1742387588978,4.62444103,2015.7,2015.6,4.9613]
[1742387589878,17.161,2015.8,2015.7,4.96105]
[1742387590086,4.62444103,2016.0,2015.7,4.96105]
[1742387590613,4.62444103,2016.0,2015.8,4.9607]
[1742387590771,5.14389297,2016.2,2015.9,4.96039]
[1742387590972,5.14389297,2016.2,2015.9,4.96047]
[1742387591269,5.14389297,2016.2,2016.0,4.96019]
[1742387591470,5.14389297,2016.2,2015.9,4.96052]
[1742387591670,4.96007,2016.1,2015.7,0.7644]
[1742387591921,4.62444103,2016.2,2015.6,10.43508]
[1742387591922,9.58484103,2016.0,2015.6,10.43508]
[1742387592090,4.62444103,2015.8,2015.5,5.72592]
[1742387592289,4.62444103,2015.8,2015.6,4.96111]
[1742387592496,4.62444103,2015.8,2015.5,5.72594]
[1742387592804,4.62444103,2016.0,2015.7,4.96105]
[1742387593022,4.62444103,2016.0,2015.6,4.96106]
[1742387593194,4.62444103,2016.0,2015.5,6.02883157]
[1742387593397,4.62444103,2016.0,2015.9,4.96056]
[1742387595303,4.62444103,2016.2,2016.0,4.96013]
[1742387595904,4.62444103,2016.2,2015.9,4.96054]
[1742387596216,4.62444103,2016.0,2015.9,4.96054]
[1742387596912,4.62444103,2016.1,2016.0,4.96008]
[1742387597212,4.62444103,2016.1,2015.9,4.96044]
[1742387597511,4.62444103,2016.1,2015.9,9.92085]
[1742387597717,4.62444103,2016.1,2015.9,4.96041]
[1742387598017,4.62444103,2016.1,2016.0,4.96031]
[1742387598776,4.62444103,2016.1,2015.9,4.96041]
[1742387599013,4.62444103,2016.1,2015.8,4.96078]
[1742387599178,4.16952574,2015.9,2015.8,4.96065]
[1742387599489,4.16952574,2015.9,2015.7,9.92184]
[1742387599685,4.16952574,2015.9,2015.7,4.96092]
[1742387600005,4.16952574,2015.9,2015.6,4.96122]
[1742387600193,4.16952574,2015.9,2015.6,9.92231]
[1742387600519,4.16952574,2015.7,2014.8,4.9632]
[1742387600836,4.99812574,2016.0,2014.8,4.9632]
[1742387600837,4.16952574,2015.4,2015.1,4.96238]
[1742387601116,4.16952574,2015.2,2015.1,4.96238]
[1742387601276,4.16952574,2015.2,2015.0,4.96258]
[1742387601479,4.16952574,2015.2,2015.1,4.96253]
[1742387601685,4.16952574,2015.4,2015.2,4.96207]
[1742387601889,4.16952574,2015.6,2015.4,4.96157]
[1742387602090,11.24729,2015.8,2015.4,9.92323]
[1742387602305,4.16952574,2015.6,2015.5,4.96154]
[1742387603022,4.16952574,2015.9,2015.7,4.9609]
[1742387603224,4.16952574,2015.9,2015.8,4.9608]
[1742387605352,4.16952574,2016.2,2016.0,4.96031]
[1742387605529,4.16952574,2016.2,2016.1,4.96007]
[1742387606246,4.16952574,2016.2,2016.0,9.92054]
[1742387606447,4.16952574,2016.2,2016.1,4.96007]
[1742387607222,0.51934391,2016.3,2016.2,4.95982]
[1742387610017,0.51934391,2016.3,2016.2,7.95982]
[1742387610218,9.57561656,2016.7,2016.2,12.91949]
[1742387610432,5.44633656,2016.5,2016.1,11.25313]
[1742387610621,5.44633656,2016.5,2016.0,4.96016]
[1742387610806,5.44633656,2016.5,2016.1,9.91976]
[1742387611210,5.44633656,2016.5,2016.2,4.9598]
[1742387611944,5.44633656,2016.5,2016.2,4.95968]
[1742387612613,4.61693656,2016.5,2016.2,4.95968]
[1742387612814,4.61693656,2016.7,2016.2,1.042468]
[1742387613039,4.61693656,2016.7,2016.4,4.95924]
[1742387613311,4.61693656,2016.7,2016.4,9.91842]
[1742387613508,4.61693656,2016.7,2016.5,4.95907]
[1742387613725,0.8106,2016.8,2016.6,4.95884]
[1742387613944,6.12,2016.9,2016.7,4.95844]
[1742387614246,22.58173656,2017.0,2016.7,4.95844]
[1742387614674,5.47658247,2017.2,2016.7,4.95844]
[1742387614675,5.37433656,2017.2,2017.0,4.95774]
[1742387614848,10.33170656,2017.2,2016.7,5.73937]
[1742387615056,10.33170656,2017.2,2016.6,0.991791]
[1742387615057,4.61693656,2017.0,2016.6,10.909341]
[1742387615257,4.61693656,2017.0,2016.7,6.02636357]
[1742387615552,4.61693656,2017.0,2016.7,6.02634357]
[1742387615855,5.43953656,2016.8,2016.3,4.95939]
[1742387616062,5.43953656,2016.8,2016.4,4.95919]
[1742387616363,4.95863,2016.7,2016.3,4.95956]
[1742387616567,4.61693656,2016.6,2016.3,4.95956]
[1742387616864,5.43953656,2016.8,2016.4,9.91856]
[1742387617171,4.61693656,2016.8,2016.6,4.9588]
[1742387617365,4.61693656,2016.8,2016.5,9.91796]
[1742387617677,4.61693656,2016.8,2016.6,4.95873]
[1742387618043,4.61693656,2016.8,2016.5,4.95893]
[1742387618360,4.61693656,2016.8,2016.4,4.9593]
[1742387618576,4.61693656,2016.8,2016.5,4.95894]
[1742387619882,4.61693656,2016.8,2016.4,4.9593]
[1742387620082,9.57531656,2016.8,2016.3,4.95955]
[1742387620281,10.34148656,2016.6,2016.2,4.95975]
[1742387620487,11.02477455,2016.6,2016.2,4.95975]
[1742387620648,4.61693656,2016.4,2016.1,4.95988]
[1742387620846,5.38253656,2016.6,2016.2,4.95963]
[1742387621073,10.89113656,2016.8,2016.5,4.95891]
[1742387621340,5.42913656,2016.8,2016.6,4.95882]
[1742387621775,10.73693656,2017.0,2016.7,4.95849]
[1742387623282,10.73693656,2017.0,2016.7,9.91696]
[1742387623576,10.73693656,2017.0,2016.7,4.95847]
[1742387624185,5.39083656,2017.1,2016.9,4.95797]
[1742387624395,0.7739,2017.1,2016.9,4.95797]
[1742387624706,10.39295656,2017.3,2016.9,4.95797]
[1742387625048,4.61693656,2017.1,2016.8,4.9583]
[1742387625256,4.61693656,2016.9,2016.6,10.41981]
[1742387625456,4.61693656,2016.9,2016.6,15.37851]
[1742387625791,4.61693656,2016.9,2016.6,10.4197]
[1742387626187,4.61693656,2016.9,2016.7,4.95849]
[1742387626485,5.65623222,2017.1,2016.7,4.95849]
[1742387626693,5.65623222,2017.1,2016.7,9.91693]
[1742387626988,15.57162222,2017.1,2016.6,15.37852]
[1742387627160,4.61693656,2016.9,2016.7,4.95856]
[1742387627562,4.61693656,2016.9,2016.8,4.95834]
[1742387627890,4.61693656,2017.1,2016.8,4.95834]
[1742387628185,4.61693656,2017.1,2016.9,4.95808]
[1742387628398,10.39314656,2017.3,2016.8,4.95827]
[1742387628693,4.61693656,2017.1,2016.8,4.95827]
[1742387629373,4.61693656,2017.1,2016.8,4.9582]
[1742387629591,4.61693656,2017.1,2016.6,10.41961]
[1742387629749,4.61693656,2016.9,2016.6,4.95861]
[1742387629953,5.40973656,2016.9,2016.6,4.95878]
[1742387630867,5.40973656,2016.9,2016.6,4.95872]
[1742387631079,4.16566506,2016.8,2016.7,4.95858]
[1742387631299,4.16566506,2017.0,2016.7,9.91699]
[1742387631496,4.16566506,2017.0,2016.4,7.23317267]
[1742387631699,4.16566506,2016.8,2016.6,4.95872]
[1742387632004,0.7699,2017.2,2016.5,4.95899]
[1742387632199,4.16566506,2017.0,2016.7,4.95849]
[1742387632512,4.16566506,2017.0,2016.7,9.91695]
[1742387632671,4.16566506,2017.0,2016.8,4.95832]
[1742387633272,4.16566506,2017.0,2016.8,4.95825]
[1742387633614,4.16566506,2017.0,2016.9,4.9581]
[1742387635379,4.16566506,2017.2,2017.0,4.95773]
[1742387635707,4.16566506,2017.2,2017.0,4.95766]
[1742387636004,4.16566506,2017.2,2017.0,9.91544]
[1742387636213,4.16566506,2017.2,2017.1,4.95761]
[1742387636417,4.16566506,2017.2,2017.0,4.95766]
[1742387636907,4.16566506,2017.2,2016.8,4.95833]
[1742387637111,4.16566506,2017.0,2016.8,9.91652]
[1742387637308,4.16566506,2017.0,2016.9,4.9581]
[1742387638207,0.7559,2017.4,2017.1,4.95746]
[1742387638412,4.16566506,2017.2,2017.1,4.95746]
[1742387639404,4.16566506,2017.2,2017.0,4.95776]
[1742387639599,4.16566506,2017.2,2017.0,9.91552]
[1742387639783,4.16566506,2017.2,2017.0,4.95776]
[1742387640116,4.16566506,2017.2,2017.0,10.90798257]
[1742387640299,4.16566506,2017.2,2017.0,10.90793257]
[1742387640505,4.16566506,2017.2,2017.1,4.95761]
[1742387641181,4.16566506,2017.2,2017.0,5.95021257]
[1742387641385,4.16566506,2017.2,2017.0,0.99250257]
[1742387641615,4.95768,2017.1,2016.8,5.456]
[1742387641915,4.16566506,2017.0,2016.8,5.456]
[1742387642228,4.16566506,2017.0,2016.8,10.41433]
[1742387642390,4.16566506,2017.0,2016.8,10.4142]
[1742387642714,4.16566506,2017.0,2016.8,11.53118]
[1742387643014,4.16566506,2017.0,2016.8,16.48938]
[1742387643316,4.92976506,2017.0,2016.6,0.7556]
[1742387643518,4.16566506,2016.8,2016.7,4.95852]
[1742387643717,4.16566506,2016.8,2016.6,5.71419]
[1742387643922,4.16566506,2016.8,2016.6,10.67293]
[1742387644125,4.16566506,2016.8,2016.7,4.95859]
[1742387644621,4.16566506,2016.8,2016.6,10.67291]
[1742387644825,4.16566506,2016.8,2016.7,4.95859]
[1742387645027,4.16566506,2016.8,2016.6,5.71419]
[1742387646030,4.16566506,2016.8,2016.6,10.67287]
[1742387646428,4.16566506,2017.0,2016.7,4.95859]
[1742387646596,4.16566506,2017.0,2016.8,4.95817]
[1742387646794,4.16566506,2017.0,2016.9,4.9581]
[1742387649431,4.16566506,2017.2,2017.0,9.91538]
[1742387649627,4.16566506,2017.2,2017.1,4.95761]
[1742387649828,4.16566506,2017.2,2017.0,9.91542]
[1742387650043,4.16566506,2017.2,2017.1,4.95761]
[1742387651220,4.16566506,2017.2,2017.0,4.95767]
[1742387651419,4.16566506,2017.2,2017.0,6.0830407]
[1742387651734,4.16566506,2017.2,2017.1,4.95761]
[1742387652531,0.8264,2017.4,2017.2,4.95726]
[1742387652830,4.16566506,2017.3,2017.1,4.95761]
[1742387653034,4.16566506,2017.3,2017.1,9.9151]
[1742387653331,4.16566506,2017.3,2017.1,5.89183387]
[1742387653545,4.16566506,2017.3,2017.1,5.89181387]
[1742387654352,4.68473008,2017.3,2017.1,5.89181387]
[1742387654645,4.68473008,2017.3,2017.2,4.95736]
[1742387654844,4.68473008,2017.3,2017.1,10.84933387]
[1742387655555,4.68473008,2017.3,2017.2,4.95736]
[1742387656446,4.68473008,2017.3,2017.2,6.04227739]
[1742387656854,0.51906502,2017.3,2017.2,6.04227739]
[1742387657040,4.68473008,2017.3,2017.2,6.04227739]
[1742387657426,4.68473008,2017.3,2017.2,1.08491739]
[1742387657610,4.68473008,2017.3,2017.2,6.04227739]
[1742387657814,4.16566506,2017.3,2017.2,6.04227739]
[1742387658251,16.07437506,2017.6,2017.4,4.95684]
[1742387658252,4.16566506,2017.5,2017.4,4.95684]
[1742387658546,4.16566506,2017.5,2017.2,6.04218739]
[1742387658766,11.9087,2017.6,2017.3,0.97479718]
[1742387658909,11.9087,2017.6,2017.2,4.95727]
[1742387659109,11.9087,2017.6,2017.2,9.91451]
[1742387659415,4.16566506,2017.4,2017.3,4.95704]
[1742387659854,9.12272506,2017.4,2016.9,11.17452]
[1742387660148,4.16566506,2017.1,2017.0,4.9578]
[1742387660313,4.16566506,2017.1,2016.9,11.17452]
[1742387660513,4.16566506,2017.1,2016.7,1.78154409]
[1742387660734,11.11796506,2017.6,2016.7,1.78154409]
[1742387660735,4.16566506,2016.9,2016.8,4.95834]
[1742387660938,4.16566506,2016.9,2016.7,4.95836]
[1742387661113,4.16566506,2016.9,2016.7,9.91681]
[1742387661315,4.16566506,2016.9,2016.7,4.95836]
[1742387661513,4.16566506,2016.9,2016.6,9.91753]
[1742387661736,4.16566506,2016.7,2016.6,4.95872]
[1742387661959,4.16566506,2016.7,2016.5,4.95894]
[1742387662173,4.16566506,2016.7,2016.4,10.40812]
[1742387662448,4.16566506,2016.5,2016.4,9.082702]
[1742387663354,4.16566506,2016.5,2016.4,6.082702]
[1742387663553,4.16566506,2016.5,2016.3,11.23613]
[1742387663754,4.16566506,2016.5,2016.4,4.95933]
[1742387663930,4.16566506,2016.5,2016.1,5.74383]
[1742387664253,4.16566506,2016.3,2016.2,4.95982]
[1742387665517,4.16566506,2016.5,2016.4,4.9593]
[1742387665719,4.16566506,2016.7,2016.5,4.95892]
[1742387665920,4.16566506,2016.7,2016.6,4.95882]
[1742387666626,4.16566506,2016.7,2016.4,4.95929]
[1742387666840,4.16566506,2016.5,2016.2,4.95974]
[1742387667019,4.16566506,2016.3,2016.2,4.95974]
[1742387667220,9.12537506,2016.3,2015.9,10.74422]
[1742387667423,4.16566506,2016.1,2015.6,6.2687]
[1742387667648,4.16566506,2015.9,2015.6,4.96115]
[1742387668141,4.16566506,2015.9,2015.8,4.9608]
[1742387669252,4.16566506,2016.1,2015.8,0.8207]
[1742387669441,4.16566506,2016.3,2016.1,4.95997]
[1742387669989,4.16566506,2016.3,2016.0,4.96029]
[1742387670281,0.7884,2016.4,2016.0,4.96012]
[1742387670439,4.16566506,2016.1,2016.0,4.9602]
[1742387671487,0.7884,2016.4,2016.1,4.95999]
[1742387671789,4.16566506,2016.3,2016.1,4.9599]
[1742387671994,4.16566506,2016.3,2016.1,9.91983]
[1742387672164,4.16566506,2016.3,2016.2,4.95982]
[1742387672679,4.16566506,2016.5,2016.3,4.95956]
[1742387672883,0.8004,2016.6,2016.4,4.95933]
[1742387673065,0.8004,2016.6,2016.1,4.9599]
[1742387673066,4.16566506,2016.4,2016.1,4.9599]
[1742387673381,4.16566506,2016.2,2016.1,4.9599]
[1742387678293,4.16566506,2016.2,2016.0,4.96029]
[1742387678476,4.97886506,2016.2,2015.8,0.8207]
[1742387678678,4.16566506,2016.0,2015.7,4.96096]
[1742387678879,4.16566506,2015.8,2015.7,4.96096]
[1742387679081,4.16566506,2015.8,2015.6,4.96128]
[1742387679082,9.89219506,2015.8,2015.2,1.00852533]
[1742387679282,4.93136506,2015.8,2015.5,4.96138]
[1742387679459,4.93136506,2015.8,2015.4,4.96169]
[1742387679664,4.93136506,2015.8,2015.5,4.96148]
[1742387679964,9.89224506,2015.8,2015.3,4.962]
[1742387680165,4.16566506,2015.6,2015.4,4.96168]
[1742387680365,4.16566506,2015.6,2015.3,4.96196]
[1742387681070,4.16566506,2015.4,2015.3,4.96204]
[1742387681297,4.16566506,2015.6,2015.3,4.96184]
[1742387681478,4.16566506,2015.6,2015.4,4.96167]
[1742387682065,4.16566506,2015.6,2015.3,4.96202]
[1742387682396,4.16566506,2015.6,2015.3,4.96179]
[1742387682588,4.16566506,2015.6,2015.4,4.96174]
[1742387683392,4.16566506,2015.6,2015.4,9.92338]
[1742387683701,4.16566506,2015.6,2015.4,4.96164]
[1742387684304,0.7657,2015.8,2015.5,4.96154]
[1742387684606,4.16566506,2015.7,2015.5,4.96142]
[1742387685280,4.16566506,2015.7,2015.5,4.96141]
[1742387685705,4.16566506,2015.7,2015.4,4.96175]
[1742387685903,4.16566506,2015.5,2015.3,4.96196]
[1742387686510,4.16566506,2015.5,2015.2,4.96215]
[1742387686511,4.16566506,2015.5,2015.2,4.96221]
[1742387686803,0.7744,2015.4,2015.1,4.9624]
[1742387686969,4.16566506,2015.3,2015.1,4.9624]
[1742387687565,4.16566506,2015.3,2015.1,4.9625]
[1742387688292,4.16566506,2015.3,2015.2,4.96228]
[1742387688512,4.68518023,2015.5,2015.2,9.92436]
[1742387688808,0.51951517,2015.5,2015.4,4.96179]
[1742387689164,4.16566506,2015.7,2015.4,9.92358]
[1742387689389,4.16566506,2015.7,2015.5,4.9615]
[1742387690117,10.61294757,2015.7,2015.3,4.96193]
[1742387690413,4.16566506,2015.5,2015.3,9.92385]
[1742387690563,4.16566506,2015.5,2015.3,4.96192]
[1742387690900,0.7809,2015.4,2015.0,4.96265]
[1742387691104,4.16566506,2015.3,2015.0,4.96265]
[1742387691307,4.16566506,2015.3,2015.0,9.92527]
[1742387691507,4.16566506,2015.3,2015.0,4.96262]
[1742387691669,4.16566506,2015.3,2014.8,4.96314]
[1742387691670,4.16566506,2015.1,2014.8,4.96314]
[1742387691869,4.16566506,2015.1,2014.9,9.92569]
[1742387692069,4.16566506,2015.1,2014.9,4.96283]
[1742387692303,4.16566506,2015.1,2014.7,11.20625]
[1742387692503,4.16566506,2014.9,2014.6,4.9637]
[1742387692704,4.16566506,2014.9,2014.7,4.96349]
[1742387692905,4.16566506,2014.9,2014.6,4.9637]
[1742387693108,4.16566506,2014.7,2014.4,4.96423]
[1742387693307,4.16566506,2014.7,2014.5,4.96386]
[1742387693722,4.16566506,2014.7,2014.3,6.2469]
[1742387693882,0.7564,2014.6,2014.3,10.40734]
[1742387694083,0.7564,2014.6,2014.4,4.96416]
[1742387694478,0.7564,2014.6,2014.1,0.8261]
[1742387694479,4.16566506,2014.5,2014.2,4.96462]
[1742387694845,4.16566506,2014.5,2014.4,4.96425]
[1742387695219,3.7851,2015.1,2014.6,4.96363]
[1742387695407,8.74779,2015.1,2014.6,4.96363]
[1742387695592,4.16566506,2014.7,2014.6,4.96363]
[1742387696288,4.16566506,2014.7,2014.5,4.96378]
[1742387696710,4.98566506,2014.7,2014.5,4.96378]
[1742387696879,4.98566506,2014.7,2014.3,5.79617]
[1742387696880,10.94419157,2014.7,2014.3,0.8317]
[1742387697211,4.16566506,2014.4,2014.3,4.96448]
[1742387697411,4.16566506,2014.4,2014.2,4.96459]
[1742387697915,4.16566506,2014.4,2014.3,4.9645]
[1742387698491,4.16566506,2014.4,2014.2,4.9647]
[1742387698705,4.96483,2014.2,2013.5,0.8304]
[1742387698910,4.16566506,2013.7,2013.6,4.96621]
[1742387699522,4.16566506,2013.7,2013.3,5.039037]
[1742387699864,4.96586,2013.8,2013.4,4.96661]
[1742387700038,4.16566506,2013.5,2013.4,4.96661]
[1742387700232,4.16566506,2013.5,2013.3,5.039057]
[1742387700532,4.96616506,2013.5,2013.3,0.072117]
[1742387701301,4.16566506,2013.4,2013.3,5.039067]
[1742387701536,4.16566506,2013.8,2013.7,4.96598]
[1742387701746,0.7825,2014.1,2013.9,4.96536]
[1742387701942,6.12,2014.3,2014.0,4.96512]
[1742387702233,11.05626506,2014.4,2014.0,4.96512]
[1742387702434,16.02054506,2014.4,2014.0,4.96512]
[1742387702641,11.05626506,2014.4,2014.1,4.96488]
[1742387702804,6.12,2014.4,2014.2,4.96472]
[1742387703006,4.16566506,2014.3,2014.2,4.96472]
[1742387703206,10.74566464,2014.4,2014.2,4.96472]
[1742387703406,10.74566464,2014.4,2013.9,4.96545]
[1742387703602,10.74566464,2014.4,2014.0,0.574125]
[1742387703935,4.62566464,2014.2,2014.1,4.96487]
[1742387704435,4.62566464,2014.2,2013.9,4.96545]
[1742387704640,4.62566464,2014.0,2013.8,4.96572]
[1742387704932,4.62566464,2014.0,2013.7,4.9659]
[1742387705135,4.62566464,2014.0,2013.8,4.96563]
[1742387705338,4.62566464,2014.0,2013.8,4.96558]
[1742387705726,4.62566464,2014.0,2013.8,4.96554]
[1742387706259,4.62566464,2014.0,2013.6,4.96613]
[1742387706423,6.2378,2014.3,2013.8,4.96559]
[1742387706424,11.20239,2014.3,2013.8,4.96559]
[1742387706623,4.62566464,2014.0,2013.8,4.96559]
[1742387707124,4.62566464,2014.0,2013.8,9.93116]
[1742387707323,4.62566464,2014.0,2013.7,4.96596]
[1742387707639,4.62566464,2013.8,2013.6,4.96622]
[1742387707818,4.62566464,2013.8,2013.7,4.96598]
[1742387708231,4.62566464,2013.8,2013.6,4.96614]
[1742387708438,4.62566464,2013.8,2013.6,4.96607]
[1742387709556,4.96607,2013.7,2013.3,5.039007]
[1742387709755,4.62566464,2013.4,2013.3,0.072117]
[1742387710258,5.38036464,2013.4,2013.3,0.072117]
[1742387713062,10.34708464,2013.4,2013.3,0.072117]
[1742387713233,15.25783662,2013.4,2013.3,0.072117]
[1742387713969,15.80783662,2013.4,2013.3,0.072117]
[1742387714259,15.25783662,2013.4,2013.3,0.072117]
[1742387714943,8.38036464,2013.4,2013.3,0.072117]
[1742387715632,5.38036464,2013.4,2013.3,0.072117]
[1742387715837,4.62566464,2013.4,2013.3,0.072117]
[1742387718861,9.59238464,2013.4,2013.3,0.072117]
[1742387719460,10.93958464,2013.4,2013.3,0.072117]
[1742387719666,22.6910251,2013.4,2013.3,0.072117]
[1742387719886,8.51721,2013.2,2013.1,0.005]
[1742387720064,31.11107464,2013.2,2013.1,0.005]
[1742387720238,20.9682,2013.2,2013.1,0.005]
[1742387720438,30.56107464,2013.2,2013.1,0.005]
[1742387720669,35.04083274,2013.2,2013.1,0.005]
[1742387721449,35.59083274,2013.2,2013.1,0.005]
[1742387722846,35.04083274,2013.2,2013.1,0.005]
[1742387723473,35.59083274,2013.2,2013.1,0.005]
[1742387725481,35.04083274,2013.2,2013.1,0.005]
[1742387726381,4.62566464,2012.8,2012.4,5.80076]
[1742387726553,4.62566464,2012.8,2012.5,4.96881]
[1742387726882,4.62566464,2012.8,2012.7,4.96845]
[1742387727078,4.62566464,2012.8,2012.6,4.96845]
[1742387727270,4.18240637,2012.8,2012.5,9.93768]
[1742387727471,4.18240637,2012.8,2012.6,4.96867]
[1742387727646,4.18240637,2012.8,2012.6,4.96856]
[1742387728261,4.18240637,2012.8,2012.5,4.96879]
[1742387728548,4.18240637,2012.6,2012.5,9.93749]
[1742387728945,4.18240637,2012.6,2012.4,0.8316]
[1742387729173,4.18240637,2012.6,2012.2,0.8299]
[1742387729365,4.18240637,2012.4,2012.3,4.96943]
[1742387730154,4.18240637,2012.4,2012.2,5.79937]
[1742387730553,4.18240637,2012.6,2012.4,4.96901]
[1742387730783,4.18240637,2012.6,2012.5,4.96894]
[1742387731280,4.18240637,2012.6,2012.4,4.96909]
[1742387731450,4.18240637,2012.6,2012.5,4.96894]
[1742387731988,4.18240637,2012.6,2012.4,4.96909]
[1742387732488,4.18240637,2012.6,2012.4,4.96913]
[1742387732779,11.79529164,2012.6,2012.0,3.0]
[1742387732979,4.18240637,2012.4,2012.1,4.96969]
[1742387733183,4.18240637,2012.4,2012.2,4.96956]
[1742387733382,4.18240637,2012.4,2012.3,4.96943]
[1742387734556,4.18240637,2012.4,2012.2,4.96952]
[1742387734905,4.18240637,2012.4,2012.3,4.96943]
[1742387735682,4.18240637,2012.4,2012.2,4.96957]
[1742387735858,4.18240637,2012.4,2012.0,5.77424]
[1742387736061,4.18240637,2012.2,2011.7,0.759]
[1742387736274,4.18240637,2011.9,2011.8,4.97067]
[1742387736472,4.18240637,2012.0,2011.9,4.97042]
[1742387736888,0.68265616,2012.4,2012.3,4.96929]
[1742387736889,4.18240637,2012.4,2012.3,4.96929]
[1742387737098,4.18240637,2012.4,2012.1,4.96992]
[1742387737423,6.79894527,2012.6,2012.2,4.96967]
[1742387737905,1.83015527,2012.6,2012.3,4.96939]
[1742387738109,6.12,2012.7,2012.5,4.96878]
[1742387738310,0.51692157,2013.1,2012.9,4.96779]
[1742387738457,11.0868,2013.4,2013.0,4.9677]
[1742387738458,6.12,2013.4,2013.0,4.9677]
[1742387738663,4.18240637,2013.1,2012.9,4.96794]
[1742387738890,4.18240637,2012.9,2012.8,5.78931]
[1742387739768,4.18240637,2013.0,2012.9,4.96795]
[1742387740276,10.30240637,2013.4,2013.3,4.96696]
[1742387740691,0.8235,2013.8,2013.3,4.96696]
[1742387740897,4.18240637,2013.5,2013.4,4.96662]
[1742387741992,4.18240637,2013.9,2013.8,4.96562]
[1742387742306,4.18240637,2013.9,2013.3,6.2405]
[1742387742509,4.18240637,2013.5,2013.4,4.96672]
[1742387742675,4.18240637,2013.5,2013.3,11.20737]
[1742387742884,4.18240637,2013.5,2013.4,4.96672]
[1742387743607,4.18240637,2013.5,2013.3,10.40387]
[1742387743814,4.18240637,2013.5,2013.3,10.4038]
[1742387744783,4.18240637,2013.5,2013.3,5.437]
[1742387745086,9.14889637,2013.5,2013.0,4.96757]
[1742387745286,9.92783637,2013.6,2012.8,11.16302]
[1742387745287,4.18240637,2013.1,2012.8,11.16302]
[1742387745492,4.96691,2013.4,2012.9,4.96773]
[1742387745917,4.967,2013.3,2012.9,4.96773]
[1742387746116,4.96756,2013.1,2012.6,4.96846]
[1742387746416,4.18240637,2012.7,2012.6,4.96846]
[1742387746999,4.18240637,2012.7,2012.5,4.96885]
[1742387747205,4.18240637,2012.7,2012.5,4.96882]
[1742387747620,4.18240637,2012.8,2012.7,4.96841]
[1742387747780,4.18240637,2013.0,2012.9,4.96786]
[1742387748770,4.18240637,2013.2,2013.1,4.96726]
[1742387748982,4.18240637,2013.3,2013.2,4.96718]
[1742387749183,4.18240637,2013.3,2013.1,4.96745]
[1742387749373,6.12,2013.4,2013.0,4.96753]
[1742387749587,6.12,2013.4,2013.1,4.96742]
[1742387749788,13.11034064,2013.4,2013.0,4.96753]
[1742387750009,4.18240637,2013.1,2013.0,4.96753]
[1742387750415,4.18240637,2013.1,2012.9,4.96786]
[1742387750631,4.18240637,2013.1,2012.9,9.93568]
[1742387750930,4.18240637,2013.1,2013.0,4.9677]
[1742387752300,4.18240637,2013.1,2012.9,4.96782]
[1742387752508,5.09734401,2013.1,2012.8,5.77238]
[1742387752709,4.18240637,2012.9,2012.7,4.96843]
[1742387753007,0.91493764,2013.1,2012.7,4.96843]
[1742387753008,4.18240637,2012.8,2012.7,4.96843]
[1742387753613,9.15063637,2012.8,2012.4,5.74355]
[1742387753810,4.18240637,2012.5,2012.2,11.17693]
[1742387754009,4.18240637,2012.3,2012.2,5.74393]
[1742387754237,4.18240637,2012.3,2012.2,4.96943]
[1742387754392,4.18240637,2012.3,2012.1,4.96977]
[1742387754834,4.18240637,2012.3,2012.2,4.96968]
[1742387755124,4.18240637,2012.3,2011.9,6.2075]
[1742387755125,4.63590146,2012.3,2012.0,4.97015]
[1742387755329,4.63590146,2012.3,2012.0,4.97004]
[1742387756091,4.63590146,2012.3,2012.0,9.94007]
[1742387756325,6.91320861,2012.3,2012.0,4.97003]
[1742387756826,11.88265861,2012.3,2011.9,9.94057]
[1742387757014,4.63590146,2012.3,2012.0,4.97005]
[1742387757728,9.60594146,2012.1,2011.7,4.97078]
[1742387757927,4.63590146,2012.1,2011.8,4.97051]
[1742387758131,4.63590146,2012.1,2011.6,0.7878]
[1742387758427,4.63590146,2011.9,2011.6,4.97098]
[1742387758739,4.63590146,2011.9,2011.7,4.97073]
[1742387758934,4.63590146,2012.0,2011.8,4.97067]
[1742387759227,4.63590146,2012.0,2011.9,4.97042]
[1742387759524,4.63590146,2012.0,2011.8,4.97061]
[1742387760300,5.59646361,2012.0,2011.3,0.7901]
[1742387760498,9.60667146,2011.8,2011.3,0.7901]
[1742387760698,4.63590146,2011.6,2011.4,4.97151]
[1742387760942,4.63590146,2011.6,2011.4,4.97165]
[1742387761248,4.63590146,2011.6,2011.3,5.76183]
[1742387761414,4.63590146,2011.4,2011.2,2.6213125]
[1742387762445,4.63590146,2011.4,2011.2,7.5933525]
[1742387762659,4.63590146,2011.6,2011.4,4.97143]
[1742387762930,4.63590146,2011.6,2011.2,2.6213125]
[1742387763144,4.63590146,2011.4,2011.2,7.5933525]
[1742387763732,4.63590146,2011.5,2011.3,4.97178]
[1742387763935,4.63590146,2011.5,2011.2,2.6213125]
[1742387763936,4.63590146,2011.7,2011.5,4.97131]
[1742387764098,4.63590146,2011.7,2011.4,4.97155]
[1742387764298,4.63590146,2011.7,2011.5,4.97139]
[1742387764495,4.63590146,2011.8,2011.6,4.97099]
[1742387765149,4.63590146,2011.8,2011.5,4.97133]
[1742387765446,4.63590146,2011.8,2011.5,4.97124]
[1742387765604,4.63590146,2011.8,2011.6,4.97101]
[1742387765804,6.31329082,2011.8,2011.3,4.97168]
[1742387766005,4.63590146,2011.6,2011.4,4.97157]
[1742387766509,6.31329082,2011.8,2011.5,4.97132]
[1742387766717,4.63590146,2011.6,2011.4,4.97157]
[1742387766917,5.76430554,2011.6,2011.2,12.5652225]
[1742387767134,4.63590146,2011.4,2011.2,12.5652325]
[1742387767428,4.63590146,2011.4,2011.2,2.6213125]
[1742387767807,4.9719,2011.3,2011.2,2.6213125]
[1742387768009,4.63590146,2011.4,2011.2,2.6213125]
[1742387768211,4.63590146,2011.6,2011.2,2.6213125]
[1742387768426,4.63590146,2011.6,2011.5,4.97141]
[1742387768627,4.63590146,2011.6,2011.2,2.6213125]
[1742387768816,4.63590146,2011.8,2011.5,4.97141]
[1742387769040,4.63590146,2011.8,2011.6,4.97103]